bitfinex/quotes_ETHUSD_20250215
["timestamp","ask_amount","ask_price","bid_price","bid_amount"]
[1739577804502,0.042923,2725.3,2724.9,3.09193835]
[1739577804702,0.042923,2725.3,2725.2,6.76138835]
[1739577804922,0.751,2725.9,2725.2,6.76138835]
[1739577805092,3.711573,2725.8,2725.3,3.66922]
[1739577805930,3.711573,2725.8,2725.2,6.76138835]
[1739577806131,0.042923,2725.8,2725.6,3.66889]
[1739577806332,4.41917,2726.2,2725.7,3.66878]
[1739577806631,0.042923,2726.1,2725.7,3.66878]
[1739577806995,0.042923,2726.1,2725.6,4.79493983]
[1739577807320,0.042923,2726.1,2725.6,4.79492983]
[1739577807522,0.042923,2726.1,2725.6,8.46374983]
[1739577807695,0.042923,2726.1,2725.7,4.90743882]
[1739577807902,0.042923,2726.1,2725.9,3.66844]
[1739577808101,0.042923,2726.1,2725.8,3.09193835]
[1739577808510,0.042923,2726.1,2725.8,6.76053835]
[1739577809007,0.042923,2726.1,2725.9,3.66844]
[1739577809244,0.751,2726.2,2725.9,1.16676572]
[1739577809457,0.751,2726.2,2726.0,3.66836]
[1739577810042,0.751,2726.2,2725.9,1.16676572]
[1739577810246,0.751,2726.2,2725.9,4.83525572]
[1739577811050,0.751,2726.2,2725.9,1.16676572]
[1739577812055,0.751,2726.2,2725.9,4.83525572]
[1739577812255,0.751,2726.2,2725.9,1.16676572]
[1739577812410,0.751,2726.2,2725.9,4.83524572]
[1739577812940,0.751,2726.2,2726.0,3.66835]
[1739577813134,4.50001,2726.5,2726.0,5.59573641]
[1739577813454,3.66801,2726.3,2725.8,7.52842835]
[1739577813624,3.66813,2726.2,2725.8,7.52842835]
[1739577814006,3.66813,2726.2,2725.8,6.76052835]
[1739577814358,3.66813,2726.2,2725.6,3.66885]
[1739577814359,3.66824,2726.1,2725.6,3.66885]
[1739577814526,3.66824,2726.1,2725.6,3.66882]
[1739577814711,3.66824,2726.1,2725.6,4.78859384]
[1739577815111,4.50049,2726.2,2725.7,3.66871]
[1739577816451,3.6683,2726.1,2725.6,4.78863384]
[1739577816760,3.66852,2725.9,2725.6,1.11977384]
[1739577817056,4.50107,2725.8,2725.3,3.66924]
[1739577817241,3.66878,2725.7,2725.3,3.66924]
[1739577817635,4.50095,2725.8,2725.3,7.3385]
[1739577817842,0.8323,2725.8,2725.5,3.66898]
[1739577818054,0.8323,2725.8,2725.5,7.33796]
[1739577818210,4.5007,2726.0,2725.5,3.66899]
[1739577818413,3.66857,2725.9,2725.4,4.78895384]
[1739577818764,3.66857,2725.9,2725.5,3.66901]
[1739577818943,3.66857,2725.9,2725.4,4.78895384]
[1739577819143,7.33719,2725.9,2725.4,4.78895384]
[1739577819353,0.8323,2726.0,2725.2,7.52919835]
[1739577819555,0.8323,2726.0,2725.2,6.76129835]
[1739577819556,0.8323,2725.6,2725.2,6.76129835]
[1739577820074,9.05827,2726.1,2725.2,6.76129835]
[1739577820075,3.66847,2726.0,2725.2,3.09193835]
[1739577820251,8.16922,2726.0,2725.5,3.66902]
[1739577820427,3.66851,2725.9,2725.5,0.810618]
[1739577820626,0.04391856,2725.9,2725.5,0.810618]
[1739577820962,3.71253856,2725.9,2725.5,0.810618]
[1739577821166,3.66873,2725.8,2725.5,0.810618]
[1739577821365,0.0439796,2725.7,2725.5,0.810618]
[1739577821572,3.66873,2725.8,2725.5,0.810618]
[1739577821719,0.0439796,2725.7,2725.5,0.810618]
[1739577821932,4.50075,2726.0,2725.6,0.4479778]
[1739577821933,3.66853,2725.9,2725.6,0.4479778]
[1739577822181,0.0439796,2725.8,2725.5,0.810618]
[1739577822380,0.0439796,2725.8,2725.5,4.479618]
[1739577822585,0.0439796,2725.8,2725.6,3.66885]
[1739577822739,5.39,2726.1,2725.7,4.43668]
[1739577822940,0.04403124,2726.0,2725.8,3.66863]
[1739577823253,0.04403124,2726.0,2725.9,0.443653]
[1739577823935,4.50029,2726.3,2725.9,4.112063]
[1739577824137,0.04410636,2726.2,2725.9,4.112063]
[1739577824365,3.66812,2726.2,2725.9,0.443653]
[1739577824571,0.04410636,2726.1,2725.9,0.443653]
[1739577824972,3.71242636,2726.1,2725.9,0.443653]
[1739577825333,3.6685,2726.0,2725.7,0.7679]
[1739577825642,0.8323,2726.0,2725.5,7.57149635]
[1739577825862,3.71270452,2725.9,2725.5,7.57149635]
[1739577826170,0.04413452,2725.9,2725.5,7.57149635]
[1739577826382,3.71271452,2725.9,2725.5,3.90255635]
[1739577826530,0.04413452,2725.9,2725.6,0.83396264]
[1739577826959,3.6687,2725.8,2725.6,0.83396264]
[1739577827161,0.04404064,2725.7,2725.5,0.810618]
[1739577827381,3.66863,2725.9,2725.4,4.43701]
[1739577827584,0.04404064,2725.6,2725.4,4.43699]
[1739577827782,3.66865,2725.8,2725.4,4.43699]
[1739577828141,3.66865,2725.8,2725.5,0.743699]
[1739577828269,3.66865,2725.8,2725.4,3.66909]
[1739577829007,4.50076,2726.0,2725.4,3.66909]
[1739577829390,3.6687,2725.8,2725.3,3.6693]
[1739577829710,3.6687,2725.8,2725.3,3.66931]
[1739577830003,3.6687,2725.8,2725.3,3.66925]
[1739577830212,3.6687,2725.8,2725.4,4.11166422]
[1739577830563,3.66851,2725.9,2725.4,7.78075422]
[1739577830781,3.66851,2725.9,2725.4,4.11158422]
[1739577830981,3.66865,2725.8,2725.4,4.11157422]
[1739577831522,4.50077,2726.0,2725.4,0.44249422]
[1739577831721,3.66853,2725.9,2725.4,0.44249422]
[1739577832020,0.8323,2726.0,2725.6,3.66886]
[1739577832226,0.8323,2726.2,2725.7,3.66878]
[1739577832524,4.50042,2726.2,2725.7,3.66878]
[1739577832919,3.6683,2726.1,2725.6,4.43678]
[1739577833107,0.8323,2725.9,2725.5,0.41117942]
[1739577833310,4.50082,2725.9,2725.5,4.08021942]
[1739577833638,0.8323,2725.9,2725.5,4.08021942]
[1739577833788,0.8323,2725.9,2725.5,7.74919942]
[1739577833989,0.8323,2725.9,2725.5,4.08015942]
[1739577834231,0.7982,2726.1,2725.7,3.66876]
[1739577834468,0.7982,2726.1,2725.7,3.66868]
[1739577834596,0.7982,2726.1,2725.8,3.66861]
[1739577835233,6.1882,2726.3,2725.9,3.66842]
[1739577835542,3.66784,2726.4,2725.9,3.66851]
[1739577835690,0.27457297,2726.0,2725.9,4.78738684]
[1739577836143,0.31837889,2726.0,2725.9,4.78738684]
[1739577836320,0.31837889,2726.0,2725.9,1.11887684]
[1739577836489,0.31837889,2726.0,2725.8,3.66862]
[1739577836690,0.31837889,2726.0,2725.7,3.66875]
[1739577836890,0.27457297,2726.0,2725.7,3.66875]
[1739577837109,0.04380592,2725.9,2725.7,3.66875]
[1739577837498,3.66811,2726.2,2725.8,3.66864]
[1739577837714,3.71379096,2726.4,2725.8,3.66864]
[1739577838042,3.66803,2726.3,2725.8,4.16437954]
[1739577838327,3.6681,2726.3,2725.8,7.83290954]
[1739577838489,3.94268038,2726.3,2725.8,4.16426954]
[1739577839026,3.94268038,2726.3,2725.8,7.83283954]
[1739577839185,0.27458038,2726.3,2725.8,4.16426954]
[1739577839391,0.27458038,2726.3,2725.9,4.08482695]
[1739577839598,0.27458038,2726.3,2726.0,3.66835]
[1739577840126,0.27458038,2726.2,2726.0,3.66835]
[1739577840339,0.27458038,2726.2,2726.1,4.43154]
[1739577840546,0.27458038,2726.2,2726.1,8.37511005]
[1739577841811,9.0573,2726.8,2726.1,8.37511005]
[1739577841812,0.27458038,2726.7,2726.1,4.70687005]
[1739577842012,0.27458038,2726.7,2726.3,7.33578]
[1739577842213,0.27458038,2726.7,2726.3,3.66788]
[1739577842408,0.27458038,2726.7,2726.1,8.37501005]
[1739577842409,0.27458038,2726.7,2726.5,3.66764]
[1739577842609,0.27458038,2726.7,2726.5,4.034404]
[1739577842944,3.66711,2727.0,2726.6,0.7633]
[1739577843334,3.66703,2727.0,2726.6,0.7633]
[1739577843529,6.1641,2727.1,2726.5,4.797694]
[1739577843843,9.83106,2727.1,2726.6,3.66746]
[1739577844051,9.83106,2727.1,2726.6,4.82316924]
[1739577844543,3.66687,2727.2,2726.6,4.82316924]
[1739577844749,0.7741,2727.3,2726.7,3.09193835]
[1739577845043,4.44079,2727.3,2726.7,3.09193835]
[1739577845244,3.66696,2727.1,2726.6,3.66746]
[1739577845762,3.66696,2727.1,2726.6,8.49066224]
[1739577845963,4.44082,2727.3,2726.6,1.15572224]
[1739577846165,4.44075,2727.3,2726.6,1.15572224]
[1739577846334,0.7741,2727.3,2726.7,3.09193835]
[1739577846525,0.7741,2727.3,2726.8,3.66717]
[1739577846726,0.7741,2727.3,2726.9,0.67591084]
[1739577846958,4.44074,2727.3,2726.9,0.67591084]
[1739577847473,0.7741,2727.3,2726.9,0.67591084]
[1739577847628,0.7741,2727.3,2727.0,3.66701]
[1739577848264,9.05637,2727.5,2727.1,3.66689]
[1739577848554,5.39,2727.5,2727.1,5.23117108]
[1739577848867,5.39,2727.5,2727.1,8.89800108]
[1739577849073,5.39,2727.5,2727.1,5.23111108]
[1739577849278,5.29,2727.5,2727.1,5.23111108]
[1739577849874,8.95637,2727.5,2727.1,5.23115108]
[1739577850030,5.29,2727.5,2727.1,5.23115108]
[1739577850231,3.66623,2727.6,2727.1,5.23111108]
[1739577850458,4.44028,2727.7,2727.1,5.23110108]
[1739577850666,0.04425178,2727.5,2727.2,3.66672]
[1739577850870,3.66624,2727.6,2727.1,5.23110108]
[1739577851026,0.04425178,2727.4,2727.1,5.23110108]
[1739577851228,3.66642,2727.5,2727.1,1.56428108]
[1739577851481,0.04425178,2727.3,2727.1,4.43019]
[1739577851681,3.66642,2727.5,2727.1,4.43019]
[1739577851831,0.04425178,2727.2,2727.1,4.43019]
[1739577852031,4.44026,2727.7,2727.2,3.66668]
[1739577852271,3.66624,2727.6,2727.2,3.66668]
[1739577852573,7.33257,2727.6,2727.1,0.7633]
[1739577852725,0.7741,2727.7,2727.1,3.66689]
[1739577852929,3.66628,2727.6,2727.1,3.66689]
[1739577854942,3.66636,2727.5,2727.0,3.09193835]
[1739577855241,3.66624,2727.6,2727.1,3.6668]
[1739577855439,3.66624,2727.6,2727.2,3.66674]
[1739577855646,4.44019,2727.7,2727.2,3.66674]
[1739577856451,3.66623,2727.6,2727.0,6.75889835]
[1739577856801,3.66623,2727.6,2727.1,3.66683]
[1739577857009,4.4402,2727.7,2727.2,3.66665]
[1739577857918,4.4402,2727.7,2727.3,3.66658]
[1739577858241,4.4402,2727.7,2727.2,3.66665]
[1739577858539,0.7741,2727.7,2727.4,3.66648]
[1739577858835,0.7741,2727.7,2727.4,3.66641]
[1739577859149,5.1242089,2727.9,2727.5,3.66635]
[1739577859330,8.7901489,2727.9,2727.4,3.66641]
[1739577859956,3.6661,2727.7,2727.2,1.04255184]
[1739577860247,1.4583589,2727.9,2727.2,3.66674]
[1739577860451,3.66615,2727.7,2727.2,3.66668]
[1739577861361,3.66615,2727.7,2727.1,0.7857]
[1739577861510,4.42754,2727.6,2727.1,4.45259]
[1739577862008,4.42754,2727.6,2727.1,5.64132792]
[1739577862461,0.7612,2727.6,2727.2,3.66669]
[1739577862759,0.7612,2727.8,2727.1,1.97443792]
[1739577862930,0.7612,2727.8,2727.5,3.66633]
[1739577863105,0.7612,2727.8,2727.4,3.66649]
[1739577863546,0.7612,2727.8,2727.3,3.66658]
[1739577863764,0.7612,2727.8,2727.1,8.11931]
[1739577863765,3.66615,2727.7,2727.1,8.11931]
[1739577863968,3.66624,2727.6,2727.1,8.11931]
[1739577864117,3.66615,2727.7,2727.2,3.66675]
[1739577864316,3.66615,2727.7,2727.3,3.66659]
[1739577864554,0.7612,2727.8,2727.2,3.66675]
[1739577864769,0.7612,2727.8,2727.4,3.66642]
[1739577865082,0.7612,2727.8,2727.2,3.66676]
[1739577865254,4.42721,2727.8,2727.2,4.54007143]
[1739577865423,4.42721,2727.8,2727.3,3.66654]
[1739577865626,0.04514323,2727.7,2727.4,3.6664]
[1739577865821,0.04514323,2727.7,2727.3,3.09193835]
[1739577866078,9.6529989,2727.9,2727.4,0.39652498]
[1739577866373,0.04514323,2727.6,2727.4,3.66647]
[1739577866573,9.6529989,2727.9,2727.4,3.66647]
[1739577866734,0.04514323,2727.5,2727.4,3.66647]
[1739577866926,9.6529989,2727.9,2727.4,3.66647]
[1739577867125,0.04528394,2727.5,2727.4,3.66647]
[1739577867362,9.6529989,2727.9,2727.4,4.79629298]
[1739577867566,0.04528394,2727.5,2727.4,3.66647]
[1739577867778,9.6529989,2727.9,2727.3,6.75844835]
[1739577868069,5.9871589,2727.9,2727.5,3.66635]
[1739577868371,3.71126394,2727.8,2727.4,3.66647]
[1739577868736,0.04528394,2727.8,2727.4,3.66647]
[1739577869342,0.04528394,2727.8,2727.5,3.66629]
[1739577869540,0.04528394,2727.8,2727.6,3.66616]
[1739577869736,0.04528394,2727.8,2727.5,0.8019]
[1739577870080,0.04528394,2727.8,2727.5,4.46825]
[1739577870965,0.04528394,2727.8,2727.5,0.8019]
[1739577871268,0.04528394,2727.8,2727.4,4.79624298]
[1739577872583,0.04528394,2727.8,2727.6,3.66616]
[1739577872888,0.04528394,2727.8,2727.4,1.12982298]
[1739577872889,0.04528394,2727.8,2727.5,3.66634]
[1739577873049,0.04528394,2727.8,2727.6,3.66622]
[1739577873474,0.04528394,2727.8,2727.5,3.66634]
[1739577873853,0.04528394,2727.8,2727.6,3.6662]
[1739577874192,0.04528394,2727.8,2727.5,7.33262]
[1739577874348,0.04528394,2727.8,2727.4,1.12982298]
[1739577874552,3.71128394,2727.8,2727.4,3.66648]
[1739577874753,0.04528394,2727.8,2727.3,3.89383835]
[1739577874962,0.04528394,2727.8,2727.4,3.66647]
[1739577875162,3.71124394,2727.8,2727.4,3.66647]
[1739577875691,3.71124394,2727.8,2727.3,6.75853835]
[1739577876049,3.71124394,2727.8,2727.3,3.09193835]
[1739577876255,3.66628,2727.6,2727.1,4.46871]
[1739577876483,3.66628,2727.6,2727.1,3.66681]
[1739577876668,0.04541993,2727.5,2727.1,3.66681]
[1739577876868,0.04541993,2727.5,2727.2,3.66664]
[1739577877068,0.04541993,2727.5,2727.3,3.66662]
[1739577877386,0.7529,2727.7,2727.3,3.66662]
[1739577877387,0.04537302,2727.4,2727.3,3.66662]
[1739577877592,4.41905,2727.7,2727.3,3.66662]
[1739577877886,0.04537302,2727.6,2727.3,3.66662]
[1739577879190,0.04537302,2727.6,2727.2,4.70928884]
[1739577879360,0.04537302,2727.6,2727.3,0.83761088]
[1739577879561,0.04537302,2727.6,2727.3,4.50423088]
[1739577879997,0.04537302,2727.6,2727.3,0.83761088]
[1739577880205,0.04537302,2727.6,2727.2,1.04253884]
[1739577880703,0.04537302,2727.6,2727.2,4.70926884]
[1739577880866,0.04537302,2727.6,2727.3,3.66651]
[1739577881066,0.04537302,2727.6,2727.4,3.66641]
[1739577881261,0.04537302,2727.6,2727.4,3.66649]
[1739577881499,0.04537302,2727.6,2727.2,4.70920884]
[1739577881806,0.04537302,2727.5,2727.3,3.66656]
[1739577882009,3.66602,2727.8,2727.3,3.66656]
[1739577882171,0.04537302,2727.7,2727.4,3.66643]
[1739577882371,5.1209889,2727.9,2727.4,3.66643]
[1739577882570,0.04537302,2727.8,2727.4,4.42123]
[1739577883481,3.71135302,2727.8,2727.4,4.42123]
[1739577883981,0.04537302,2727.8,2727.4,4.42123]
[1739577884304,0.04537302,2727.8,2727.5,3.66634]
[1739577884606,0.04537302,2727.8,2727.5,3.66635]
[1739577884912,0.04537302,2727.8,2727.6,3.66621]
[1739577885292,3.71133302,2727.8,2727.4,4.42123]
[1739577885485,7.37739302,2727.8,2727.3,3.66662]
[1739577886009,3.66611,2727.7,2727.3,3.66662]
[1739577886211,0.04538708,2727.6,2727.3,7.33317]
[1739577886414,3.66596,2727.8,2727.3,3.66655]
[1739577886604,0.04538708,2727.7,2727.3,3.66655]
[1739577886779,3.66613,2727.7,2727.3,3.66655]
[1739577886979,0.04538708,2727.6,2727.3,3.66655]
[1739577887380,0.04538708,2727.6,2727.3,7.33309]
[1739577887681,3.66596,2727.8,2727.3,7.33308]
[1739577887882,0.04538708,2727.5,2727.3,3.66654]
[1739577888214,0.04538708,2727.4,2727.3,4.87960788]
[1739577888419,0.758,2727.6,2727.3,4.87960788]
[1739577888577,0.04538708,2727.5,2727.3,3.66654]
[1739577889321,0.04538708,2727.5,2727.4,3.66649]
[1739577890389,0.04538708,2727.5,2727.3,3.66662]
[1739577890684,0.04538708,2727.5,2727.4,3.66649]
[1739577891121,4.42396,2727.8,2727.4,3.66649]
[1739577891321,0.0453918,2727.5,2727.2,3.66669]
[1739577891496,4.42396,2727.8,2727.2,5.08471084]
[1739577891697,0.0453918,2727.4,2727.2,3.66669]
[1739577891884,3.66624,2727.6,2727.2,3.66669]
[1739577892079,0.0453918,2727.3,2727.2,3.66669]
[1739577892398,0.758,2727.8,2727.3,3.6666]
[1739577892587,0.758,2727.8,2727.4,3.66649]
[1739577893178,0.758,2727.8,2727.3,3.6666]
[1739577893179,4.42397,2727.8,2727.3,3.66659]
[1739577893681,0.758,2727.8,2727.4,3.66649]
[1739577894311,0.758,2727.8,2727.5,3.66635]
[1739577895338,0.758,2727.8,2727.4,3.66643]
[1739577895743,0.0453918,2727.7,2727.4,3.66643]
[1739577896043,0.758,2727.8,2727.5,3.66635]
[1739577896247,0.0453918,2727.6,2727.4,3.66642]
[1739577896396,0.758,2727.8,2727.5,3.66636]
[1739577896598,0.0453918,2727.7,2727.5,3.66636]
[1739577896815,0.758,2727.8,2727.5,3.66636]
[1739577897030,0.0453918,2727.7,2727.5,3.66636]
[1739577897438,0.758,2727.8,2727.5,3.66636]
[1739577897743,0.0453918,2727.6,2727.5,3.66636]
[1739577897940,0.758,2727.8,2727.5,3.66636]
[1739577898312,0.758,2727.8,2727.4,0.8214]
[1739577898643,0.758,2727.8,2727.5,3.66629]
[1739577898947,0.758,2727.8,2727.6,3.66616]
[1739577900040,0.758,2727.8,2727.6,3.66615]
[1739577900394,0.758,2727.8,2727.5,3.66635]
[1739577900895,0.758,2727.8,2727.6,3.66612]
[1739577901095,0.6971589,2727.9,2727.7,3.66609]
[1739577901394,0.6971589,2727.9,2727.7,3.66607]
[1739577902344,0.6971589,2727.9,2727.6,0.448752]
[1739577902499,0.6971589,2727.9,2727.6,3.66621]
[1739577902700,0.6971589,2727.9,2727.7,3.666]
[1739577903205,0.27461029,2727.8,2727.6,3.66612]
[1739577903414,0.27461029,2727.8,2727.7,3.66609]
[1739577903856,0.27461029,2727.8,2727.4,0.8214]
[1739577904026,0.27461029,2727.8,2727.4,0.39133384]
[1739577904198,0.8086,2727.7,2727.3,3.66655]
[1739577904698,4.47476,2727.7,2727.2,4.48803]
[1739577905026,0.8086,2727.7,2727.3,7.33315]
[1739577905432,0.8086,2727.7,2727.2,0.8214]
[1739577905734,1.5057589,2727.9,2727.2,0.8214]
[1739577905902,1.5057589,2727.9,2727.5,3.66622]
[1739577906937,1.5057589,2727.9,2727.3,3.84076535]
[1739577907097,0.6971589,2727.9,2727.6,3.09193835]
[1739577907430,0.6971589,2727.9,2727.8,3.66595]
[1739577907631,0.74277574,2727.9,2727.8,3.66595]
[1739577909036,0.74277574,2727.9,2727.6,0.8214]
[1739577909240,5.15961574,2727.9,2727.4,0.7566]
[1739577909395,3.66603,2727.8,2727.3,3.66653]
[1739577909624,3.66615,2727.7,2727.2,4.42328]
[1739577909826,0.04561684,2727.6,2727.1,3.0]
[1739577910024,0.751,2727.5,2727.0,0.7566]
[1739577910387,3.66673,2727.3,2726.8,0.7566]
[1739577910561,0.751,2727.2,2726.8,3.66725]
[1739577910864,4.46337684,2727.2,2726.8,0.50633737]
[1739577911425,3.6669,2727.1,2726.6,4.42416]
[1739577911661,3.6669,2727.1,2726.6,3.66756]
[1739577911979,3.66712,2727.0,2726.5,3.66765]
[1739577912157,3.66712,2727.0,2726.3,0.7566]
[1739577912158,0.04561684,2727.0,2726.3,0.7566]
[1739577912361,3.6675,2726.7,2726.3,1.00401701]
[1739577912528,3.6675,2726.7,2726.1,9.28357005]
[1739577912856,4.41885,2726.4,2726.1,0.8516317]
[1739577913054,4.41885,2726.4,2725.7,4.42529]
[1739577913263,3.71358684,2726.3,2725.7,4.42527]
[1739577914544,3.66797,2726.3,2725.7,4.42527]
[1739577914869,0.04561684,2726.2,2725.7,4.42527]
[1739577915073,0.04561684,2726.2,2725.7,3.66867]
[1739577915371,4.41885,2726.4,2725.8,4.569467]
[1739577915738,3.66799,2726.3,2725.8,0.900867]
[1739577915941,3.71360684,2726.3,2725.8,0.900867]
[1739577916768,3.66818,2726.2,2725.8,0.900867]
[1739577916974,0.751,2726.2,2725.6,5.34]
[1739577917176,0.751,2726.2,2725.6,9.0089]
[1739577917177,3.66826,2726.1,2725.6,9.0089]
[1739577917375,3.66826,2726.1,2725.6,5.34]
[1739577917581,0.04561684,2726.0,2725.6,5.34]
[1739577917876,0.04561684,2726.0,2725.6,9.0088]
[1739577918075,0.04561684,2726.0,2725.7,1.65262884]
[1739577918279,0.04561684,2726.0,2725.2,0.42338316]
[1739577918280,3.66852,2725.9,2725.3,3.66925]
[1739577918437,3.66852,2725.9,2725.3,7.33849]
[1739577918639,0.04490856,2725.8,2725.4,3.66911]
[1739577919040,0.04490856,2725.8,2725.3,3.66923]
[1739577919241,0.751,2725.8,2725.5,3.66904]
[1739577919457,0.04490856,2725.7,2725.5,3.66904]
[1739577919678,0.04490856,2725.7,2725.4,0.75177684]
[1739577919888,0.751,2725.8,2725.4,0.75177684]
[1739577920246,0.04490856,2725.7,2725.4,0.75177684]
[1739577920445,0.751,2725.8,2725.4,0.75177684]
[1739577920659,0.04490856,2725.7,2725.5,3.66896]
[1739577921283,0.04490856,2725.6,2725.5,3.66896]
[1739577921666,0.751,2725.8,2725.5,3.66896]
[1739577921871,0.04490856,2725.6,2725.5,3.66896]
[1739577922046,0.751,2725.8,2725.5,3.66896]
[1739577922245,0.04490856,2725.7,2725.5,3.66896]
[1739577922446,0.751,2725.8,2725.5,3.66896]
[1739577922647,0.751,2725.8,2725.6,3.66882]
[1739577922847,0.04490856,2725.7,2725.5,0.44207368]
[1739577923047,0.751,2725.8,2725.5,0.44207368]
[1739577923354,0.04490856,2725.7,2725.3,3.66922]
[1739577923561,0.04490856,2725.7,2725.4,3.66911]
[1739577923761,0.751,2725.8,2725.4,3.66911]
[1739577924087,0.04490856,2725.6,2725.4,3.66911]
[1739577924384,0.751,2725.8,2725.4,3.66911]
[1739577924548,0.04490856,2725.5,2725.4,3.66911]
[1739577924880,0.04490856,2725.5,2725.4,4.71213684]
[1739577925072,0.751,2725.8,2725.4,4.71213684]
[1739577925274,0.751,2725.8,2725.5,3.66897]
[1739577925479,0.751,2725.8,2725.5,3.66893]
[1739577925786,0.04490856,2725.7,2725.5,3.66893]
[1739577926149,0.751,2725.8,2725.5,3.66893]
[1739577926349,0.04490856,2725.6,2725.5,3.66893]
[1739577927187,0.751,2725.8,2725.4,3.66916]
[1739577927478,0.751,2725.8,2725.6,3.66887]
[1739577927479,0.04490856,2725.7,2725.6,3.66887]
[1739577927682,0.04490856,2725.7,2725.5,3.66902]
[1739577927983,0.751,2725.8,2725.5,3.66902]
[1739577928198,0.04388104,2725.6,2725.5,3.66902]
[1739577928518,0.751,2725.8,2725.5,3.66892]
[1739577928651,0.751,2725.8,2725.6,3.6689]
[1739577929654,0.8122,2726.1,2725.7,3.66878]
[1739577930353,0.8122,2726.1,2725.8,3.66859]
[1739577930589,0.8122,2726.1,2725.8,3.66856]
[1739577931308,0.8122,2726.5,2725.9,0.8305]
[1739577931594,0.8122,2726.5,2726.0,3.66827]
[1739577931803,4.47996,2726.5,2726.0,3.66827]
[1739577932214,4.47996,2726.5,2726.0,3.6683]
[1739577932375,0.8122,2726.5,2726.2,3.66804]
[1739577932579,0.8122,2726.5,2726.1,3.66822]
[1739577933474,0.8122,2726.5,2726.3,3.66795]
[1739577933675,0.8122,2726.5,2726.1,3.66824]
[1739577933909,0.8122,2726.5,2726.2,3.6681]
[1739577934314,0.8122,2726.5,2726.1,8.17436038]
[1739577934880,0.8122,2726.5,2726.1,4.50612038]
[1739577935172,0.8122,2726.5,2726.1,8.17428038]
[1739577935478,0.8122,2726.5,2726.3,3.66791]
[1739577935688,0.8122,2726.5,2726.1,4.50609038]
[1739577935935,0.8122,2726.5,2725.9,3.66841]
[1739577935936,0.8122,2726.5,2725.9,3.66842]
[1739577936123,3.66807,2726.3,2725.8,3.66863]
[1739577936263,3.66837,2726.1,2725.5,3.66894]
[1739577936467,0.8122,2725.9,2725.5,3.66894]
[1739577936836,4.48077,2725.9,2725.5,3.66894]
[1739577937120,0.04409695,2725.8,2725.4,3.66916]
[1739577937469,0.04409695,2725.8,2725.5,3.66901]
[1739577939185,0.04409695,2725.8,2725.6,3.6688]
[1739577939705,0.04409695,2725.8,2725.7,3.66878]
[1739577940215,0.04409695,2725.8,2725.6,3.6688]
[1739577940571,0.04409695,2725.8,2725.7,3.66878]
[1739577941318,0.04409695,2725.8,2725.7,4.035658]
[1739577941806,0.7865,2726.2,2725.7,4.035658]
[1739577941807,0.83235859,2726.4,2726.0,3.66826]
[1739577942008,0.83235859,2726.4,2726.1,3.66816]
[1739577942009,0.7865,2726.4,2726.1,3.66816]
[1739577942419,0.7865,2726.4,2726.1,3.66812]
[1739577942801,0.7865,2726.4,2725.9,3.6684]
[1739577943116,4.50026183,2726.4,2725.9,3.6684]
[1739577943678,0.83235183,2726.4,2725.7,4.035568]
[1739577943919,0.83235188,2726.4,2725.4,0.787]
[1739577944089,0.7865,2725.9,2725.5,3.66896]
[1739577944503,0.7865,2725.9,2725.6,3.66885]
[1739577944706,0.7865,2725.9,2725.5,3.66904]
[1739577944896,4.45503,2725.9,2725.5,3.66904]
[1739577945283,4.50088862,2725.9,2725.5,3.66904]
[1739577945815,3.66874,2725.8,2725.2,3.87893835]
[1739577946132,3.66874,2725.8,2725.3,3.66923]
[1739577946277,3.66885,2725.7,2725.1,3.6695]
[1739577946481,3.66899,2725.6,2725.1,3.6695]
[1739577946716,3.66899,2725.6,2725.1,7.339]
[1739577946892,3.66899,2725.6,2725.2,3.66945]
[1739577947543,3.71465354,2725.7,2725.2,3.66945]
[1739577947851,0.7865,2725.5,2725.1,3.6695]
[1739577948654,0.7865,2725.5,2725.0,3.0]
[1739577948655,4.45555,2725.5,2725.0,3.0]
[1739577948822,4.45555,2725.5,2725.0,6.66969]
[1739577949247,3.66919,2725.4,2724.9,6.76170835]
[1739577949460,3.66919,2725.4,2724.9,3.66977]
[1739577949625,8.12471,2725.5,2725.0,3.66969]
[1739577949808,3.66921,2725.4,2725.0,3.66969]
[1739577951206,3.66939,2725.3,2724.8,3.66993]
[1739577951455,3.66939,2725.3,2724.9,3.66985]
[1739577951750,3.66939,2725.3,2724.8,4.42481684]
[1739577951911,3.66939,2725.3,2724.8,4.42479684]
[1739577952660,0.7865,2725.5,2724.8,0.75488684]
[1739577952827,4.45561,2725.5,2725.0,3.66972]
[1739577953009,0.7865,2725.5,2725.1,3.66947]
[1739577953214,0.7865,2725.5,2725.3,3.66925]
[1739577953826,0.04390913,2725.4,2725.2,3.66944]
[1739577954348,0.04390913,2725.4,2725.1,4.45652]
[1739577954349,0.04390913,2725.4,2724.8,3.66986]
[1739577954551,3.66932,2725.3,2724.8,3.66986]
[1739577954786,3.71322913,2725.3,2724.7,4.42703]
[1739577954932,3.71322913,2725.3,2724.9,3.66983]
[1739577955985,3.71322913,2725.3,2724.9,3.66985]
[1739577957175,0.79,2725.0,2724.7,3.67003]
[1739577957672,0.04390913,2724.9,2724.7,3.67003]
[1739577959374,0.04390913,2724.9,2724.8,3.66999]
[1739577959784,0.04390913,2724.9,2724.7,3.67003]
[1739577960232,0.04390913,2724.9,2724.6,6.76212835]
[1739577960674,0.04390913,2724.9,2724.8,3.66999]
[1739577960950,0.04390913,2724.9,2724.8,5.10318283]
[1739577961158,0.79,2725.4,2725.1,3.66956]
[1739577961436,0.79,2725.4,2724.9,3.66978]
[1739577961760,4.45927,2725.4,2724.9,3.66978]
[1739577962364,0.79,2725.4,2724.8,0.67619283]
[1739577962530,4.45919,2725.4,2725.0,3.6697]
[1739577962733,0.79,2725.4,2725.1,3.66947]
[1739577963777,0.79,2725.4,2725.0,3.6697]
[1739577963951,4.45926,2725.4,2724.9,3.66976]